bitfinex/quotes_ETHUSD_20241120
["timestamp","ask_amount","ask_price","bid_price","bid_amount"]
[1732063012997,0.08053954,3104.5,3102.6,5.32]
[1732063012998,3.22149,3104.2,3102.8,0.8292]
[1732063013151,3.08055071,3104.1,3102.8,0.8292]
[1732063013351,6.30213071,3104.1,3102.8,0.8292]
[1732063013961,3.50764,3104.0,3102.8,0.8292]
[1732063014195,0.286,3103.4,3102.8,0.8292]
[1732063014355,0.08057568,3103.3,3102.8,0.8292]
[1732063014707,3.0,3103.1,3102.8,0.8292]
[1732063014866,3.30333988,3103.0,3101.6,0.8292]
[1732063015072,0.08057988,3103.0,3101.6,0.8292]
[1732063015379,3.22316,3102.6,3101.6,0.8292]
[1732063015554,3.22338,3102.4,3101.6,0.8292]
[1732063015754,0.08059915,3102.3,3101.6,0.8292]
[1732063016149,3.22426,3101.5,3100.5,0.06447932]
[1732063016272,0.40305318,3101.4,3099.4,0.01]
[1732063016477,3.0,3101.2,3099.4,0.01]
[1732063016661,0.08063833,3101.1,3099.5,0.07781938]
[1732063017018,3.0,3101.4,3099.5,0.07781938]
[1732063017019,0.38870105,3101.3,3099.6,0.0645037]
[1732063017297,0.08063833,3101.3,3099.6,0.0645037]
[1732063017498,3.0,3101.1,3099.6,0.0645037]
[1732063017658,0.08063504,3101.0,3099.6,0.0645037]
[1732063018696,0.08063502,3101.2,3099.6,0.0645037]
[1732063018916,3.0,3101.4,3099.6,0.0745037]
[1732063019078,3.08063507,3101.4,3099.7,0.89475904]
[1732063019398,0.08062755,3101.4,3100.2,0.55]
[1732063019624,0.08061872,3101.6,3100.5,0.8292]
[1732063019916,3.0,3101.4,3100.6,0.06555904]
[1732063020120,0.08062062,3101.3,3100.5,0.8292]
[1732063020620,0.08062058,3101.5,3100.5,0.8292]
[1732063020824,0.3708,3102.1,3100.6,0.06449648]
[1732063020825,3.0,3102.0,3100.6,0.06449648]
[1732063021128,3.08061671,3101.9,3100.7,0.8292]
[1732063021317,3.08061671,3101.9,3100.7,0.89475904]
[1732063021502,0.08061671,3101.9,3100.7,0.8292]
[1732063022233,0.0806095,3101.8,3100.7,0.8292]
[1732063022887,0.08060818,3102.4,3101.0,0.55]
[1732063023227,0.08060818,3102.4,3101.1,0.8292]
[1732063023595,0.08060818,3102.4,3101.2,0.06555904]
[1732063024081,3.0,3102.0,3101.2,0.06555904]
[1732063024279,0.08060933,3101.9,3101.1,0.8292]
[1732063024484,0.08060933,3101.9,3101.2,0.06555904]
[1732063024730,0.08060933,3101.9,3101.1,0.8292]
[1732063025301,3.08060932,3102.1,3101.1,0.8292]
[1732063025526,6.30425932,3102.1,3101.1,0.8292]
[1732063025735,3.08060932,3102.1,3101.1,0.8292]
[1732063025893,3.224,3101.8,3101.1,0.8292]
[1732063026225,3.08061859,3101.7,3101.1,0.8292]
[1732063026526,0.08061859,3101.7,3101.1,0.8292]
[1732063026822,0.0806186,3102.1,3101.1,0.8292]
[1732063026985,0.08061066,3102.0,3101.1,0.8292]
[1732063027434,3.0,3101.8,3101.1,0.8292]
[1732063027730,3.08061066,3102.0,3101.1,0.8292]
[1732063027932,6.30436066,3102.0,3101.1,0.8292]
[1732063028233,6.22396,3101.8,3101.1,0.8292]
[1732063028437,0.08061813,3101.7,3101.1,0.8292]
[1732063028611,3.30471813,3101.7,3101.1,0.8292]
[1732063029220,0.08061813,3101.7,3101.1,0.8292]
[1732063029744,0.08061814,3101.9,3101.1,0.8292]
[1732063029909,0.08061776,3101.8,3101.1,0.8292]
[1732063030249,0.08061763,3101.9,3101.1,0.8292]
[1732063030399,0.08060769,3102.1,3101.1,0.8292]
[1732063030597,0.08060784,3102.5,3101.1,0.8292]
[1732063030933,0.08060784,3102.5,3101.3,0.7516]
[1732063031564,3.0,3102.4,3101.3,0.7516]
[1732063031851,3.08060906,3102.3,3101.3,0.7516]
[1732063032146,3.30408906,3102.3,3101.3,0.7516]
[1732063032446,3.2239,3101.9,3101.3,0.7516]
[1732063032631,0.08061438,3101.9,3101.3,0.7516]
[1732063033003,3.080613,3102.2,3101.3,0.7516]
[1732063033238,0.080613,3102.2,3101.3,0.7516]
[1732063037115,3.304143,3102.2,3101.3,0.7516]
[1732063037313,3.22405,3101.7,3101.3,0.7516]
[1732063037511,0.08061504,3101.6,3101.3,0.7516]
[1732063038563,0.08061438,3101.9,3101.3,0.7516]
[1732063038856,3.22393,3101.8,3101.3,0.7516]
[1732063039013,3.08061437,3101.7,3101.3,0.7516]
[1732063039221,3.08061437,3101.7,3100.3,0.7748]
[1732063039222,3.22417,3101.6,3100.3,0.7748]
[1732063039410,3.22445,3101.3,3100.3,0.7748]
[1732063039616,0.08062781,3101.2,3100.4,0.06567401]
[1732063039842,0.08062781,3101.2,3100.3,0.7748]
[1732063040556,0.08062992,3101.1,3100.3,0.7748]
[1732063040720,0.0806296,3101.3,3100.3,0.7748]
[1732063040915,0.0806296,3101.3,3100.4,0.06480734]
[1732063041113,0.0806296,3101.3,3100.3,0.7748]
[1732063042059,0.08062948,3101.7,3100.3,0.7748]
[1732063042435,0.08062948,3101.7,3100.4,0.06450353]
[1732063042640,0.08062487,3101.7,3100.5,0.7748]
[1732063042831,0.08062487,3101.7,3100.6,0.0644952]
[1732063043162,0.08062487,3101.7,3100.7,0.7748]
[1732063043519,0.08062487,3101.7,3100.9,0.7748]
[1732063043864,0.0806198,3102.1,3100.9,0.7748]
[1732063045039,0.3708,3102.0,3100.9,0.7748]
[1732063045253,0.08061154,3101.9,3100.9,0.7748]
[1732063046204,0.08061624,3102.0,3100.9,0.7748]
[1732063046349,0.08061624,3102.1,3100.9,0.7748]
[1732063047444,0.08060812,3102.4,3100.9,0.7748]
[1732063047647,0.08060812,3102.4,3101.0,0.771]
[1732063047962,0.08060812,3102.4,3101.1,0.06495376]
[1732063048126,0.08060812,3102.4,3101.2,0.771]
[1732063048328,0.08060812,3102.4,3101.3,0.06492015]
[1732063048531,0.08060583,3102.3,3101.4,0.771]
[1732063048969,0.08060812,3102.3,3101.4,0.771]
[1732063049528,3.0,3102.5,3101.4,0.771]
[1732063049727,3.0,3102.3,3101.4,0.771]
[1732063050002,0.08059972,3102.2,3101.4,0.771]
[1732063050779,0.08059964,3102.5,3101.4,0.771]
[1732063050981,3.08059964,3102.5,3101.4,0.771]
[1732063051349,0.08059964,3102.5,3101.4,0.771]
[1732063051680,0.08059955,3102.4,3101.4,0.771]
[1732063052091,3.30398955,3102.4,3101.4,0.771]
[1732063052245,0.08059955,3102.4,3101.4,0.771]
[1732063053188,3.22315,3102.6,3101.4,0.771]
[1732063053189,0.08060831,3102.6,3101.4,0.771]
[1732063053374,0.08059893,3102.9,3101.5,0.83547914]
[1732063053563,0.0805894,3103.2,3101.5,0.83547914]
[1732063053766,0.0805894,3103.2,3101.7,0.771]
[1732063054083,0.08058909,3103.3,3101.9,0.771]
[1732063054489,0.08058909,3103.3,3101.8,0.06447127]
[1732063054490,0.08058909,3103.3,3102.0,0.06488326]
[1732063054697,0.08058909,3103.3,3102.1,0.771]
[1732063054912,0.08058909,3103.3,3101.8,0.06447127]
[1732063054913,0.08058909,3103.3,3102.2,0.06488326]
[1732063055050,0.08058909,3103.3,3102.3,0.771]
[1732063055362,0.08058616,3103.6,3102.3,0.771]
[1732063055560,0.08057757,3103.6,3102.3,0.771]
[1732063055776,0.08057757,3103.9,3102.5,0.771]
[1732063056162,0.08056776,3104.2,3102.7,0.771]
[1732063056413,0.08056776,3104.2,3102.2,0.3218]
[1732063056414,0.08056776,3104.2,3102.8,0.06445117]
[1732063056698,0.08055828,3104.6,3103.0,0.771]
[1732063056897,0.0805466,3105.0,3103.2,0.771]
[1732063057050,0.0805466,3105.0,3103.3,0.06473691]
[1732063057249,0.0805466,3105.0,3103.4,0.771]
[1732063057472,3.22073,3104.9,3103.4,0.771]
[1732063057674,0.08054569,3104.8,3103.4,0.771]
[1732063057908,3.08054569,3104.8,3103.6,0.771]
[1732063058414,0.08054569,3104.8,3103.6,0.771]
[1732063058617,3.30146571,3104.7,3103.6,0.771]
[1732063058781,6.22104,3104.6,3103.7,0.0644323]
[1732063059119,0.08054572,3104.5,3103.6,0.771]
[1732063060083,3.0,3104.1,3103.6,0.771]
[1732063060319,0.08055581,3104.1,3103.6,0.771]
[1732063060523,0.0805556,3104.2,3103.6,0.771]
[1732063060706,3.0,3104.2,3103.6,0.771]
[1732063061180,0.08055412,3104.1,3103.6,0.771]
[1732063062427,6.22151,3104.2,3103.6,0.771]
[1732063062582,0.08055683,3104.1,3103.6,0.771]
[1732063062785,3.0,3104.5,3103.6,0.771]
[1732063063011,3.08055019,3104.4,3103.6,0.771]
[1732063063523,3.0,3104.4,3103.6,0.771]
[1732063063680,6.30185916,3104.4,3103.6,0.771]
[1732063063877,0.08054916,3104.4,3103.6,0.771]
[1732063064505,3.0,3104.8,3103.6,0.771]
[1732063064506,0.08054918,3104.7,3103.6,0.771]
[1732063065090,0.08054584,3104.9,3103.6,0.771]
[1732063065430,0.08054584,3104.9,3103.8,0.8094]
[1732063066895,3.0,3104.8,3103.8,0.8094]
[1732063067090,0.08053536,3104.7,3103.8,0.8094]
[1732063067687,2.89775086,3104.8,3103.8,0.8094]
[1732063068000,0.03174437,3104.7,3103.8,0.8094]
[1732063068200,0.03174437,3105.0,3103.8,0.8094]
[1732063068988,3.22082,3104.8,3103.8,0.8094]
[1732063069185,3.25272437,3104.7,3103.8,0.8094]
[1732063069422,0.03174437,3104.7,3103.8,0.8094]
[1732063069597,3.22111,3104.6,3103.8,0.8094]
[1732063069932,0.03174437,3104.5,3103.8,0.8094]
[1732063075134,0.03174437,3104.6,3103.8,0.8094]
[1732063075752,3.25248437,3104.9,3103.8,0.8094]
[1732063075913,3.25248437,3104.9,3103.9,0.23879943]
[1732063076116,3.25248437,3104.9,3103.8,0.8094]
[1732063076762,3.0,3104.8,3103.8,0.8094]
[1732063076931,0.03174437,3104.7,3103.8,0.8094]
[1732063077429,0.03174437,3104.7,3103.9,0.23900257]
[1732063077623,0.03174437,3104.7,3103.8,0.8094]
[1732063077965,0.03174437,3104.7,3103.9,0.23900433]
[1732063078134,0.03174437,3104.7,3103.8,0.8094]
[1732063078334,0.03174437,3104.7,3103.9,0.23900073]
[1732063078537,0.03174437,3104.7,3103.8,0.8094]
[1732063078742,0.03174437,3104.7,3103.9,0.2391151]
[1732063078937,0.03174437,3104.7,3104.0,0.8197]
[1732063079140,0.03174437,3104.7,3104.1,0.2391151]
[1732063079346,0.03174437,3104.7,3104.0,0.8197]
[1732063079347,0.03174437,3104.7,3104.2,0.23922272]
[1732063079553,0.03174437,3104.7,3104.0,0.8197]
[1732063079858,0.03174437,3104.7,3104.1,0.23922361]
[1732063080062,0.03174437,3104.7,3104.0,0.8197]
[1732063080234,0.03174437,3104.7,3104.1,0.23923163]
[1732063080564,3.03174437,3105.0,3104.2,0.23923163]
[1732063080774,3.03174437,3105.0,3104.4,0.8197]
[1732063081074,0.03174437,3105.0,3104.4,0.8197]
[1732063081633,0.03174437,3105.0,3104.5,0.47909844]
[1732063081878,0.03174437,3105.0,3104.5,0.23954952]
[1732063082061,0.03174437,3105.2,3104.5,0.23954952]
[1732063082378,3.0,3105.1,3104.5,0.23954952]
[1732063082670,0.03174437,3105.0,3104.6,0.23981953]
[1732063082841,0.03174437,3105.0,3104.5,0.23954952]
[1732063083043,0.03174437,3105.0,3104.6,0.23982295]
[1732063083363,3.59064,3105.8,3104.7,1.05951691]
[1732063083565,0.03174437,3105.7,3104.8,0.23981691]
[1732063083777,0.03174437,3105.7,3104.7,0.8197]
[1732063083778,3.22027,3105.4,3104.9,0.3042048]
[1732063083943,0.03174437,3105.3,3104.9,0.06438789]
[1732063084144,0.03174437,3105.3,3104.7,0.8197]
[1732063084452,0.03174437,3105.3,3104.8,0.24003461]
[1732063084659,3.03174437,3105.3,3104.9,0.24003461]
[1732063084828,3.03174437,3105.3,3105.0,0.24003461]
[1732063085167,6.25208437,3105.3,3104.7,0.8197]
[1732063085329,3.03174437,3105.3,3104.8,0.24017818]
[1732063085528,3.03174437,3105.3,3104.9,0.24017818]
[1732063085738,3.03174437,3105.3,3105.0,0.24017818]
[1732063086074,0.03174437,3105.3,3105.1,0.24017818]
[1732063086224,0.03174437,3105.4,3104.7,0.8197]
[1732063086422,0.03174437,3105.4,3104.8,0.24044048]
[1732063086734,0.03174437,3105.4,3104.9,0.24044048]
[1732063087035,0.03174437,3105.4,3105.0,0.24044048]
[1732063087243,0.03174437,3105.4,3105.1,0.24044048]
[1732063087467,3.0,3105.6,3105.2,0.24044048]
[1732063087675,0.03174437,3105.5,3105.3,0.24044048]
[1732063087967,0.03174437,3105.5,3105.3,0.2403798]
[1732063088138,0.03174437,3105.5,3104.7,0.8197]
[1732063088341,0.03174437,3105.5,3104.8,0.24034928]
[1732063088545,3.0,3105.4,3104.9,0.24034928]
[1732063088857,3.0,3105.4,3104.7,0.8197]
[1732063088858,0.03174437,3105.3,3105.0,0.24034928]
[1732063089027,0.03174437,3105.3,3105.1,0.24034928]
[1732063089233,0.03174437,3105.3,3105.2,0.24034928]
[1732063090169,3.0,3105.4,3104.5,0.23954952]
[1732063090170,3.0,3105.2,3104.5,0.23954952]
[1732063090335,0.03174437,3105.1,3104.6,0.30468345]
[1732063090535,0.03174437,3105.1,3104.7,0.2403443]
[1732063090757,3.0,3104.9,3104.8,0.2403443]
[1732063091067,0.03174437,3104.9,3104.8,0.2403443]
[1732063091865,0.03174437,3105.1,3104.8,0.2403443]
[1732063092037,0.03174437,3105.1,3104.9,0.2403443]
[1732063092241,0.03174437,3105.1,3105.0,0.2403443]
[1732063093162,0.03174437,3105.1,3104.4,0.8197]
[1732063095162,0.03174437,3105.3,3104.4,0.8197]
[1732063095344,0.03174437,3105.1,3104.4,0.8197]
[1732063095538,3.22037,3105.3,3104.5,0.0642915]
[1732063095750,3.03174437,3105.2,3104.4,0.8197]
[1732063096301,3.0,3105.0,3104.4,0.8197]
[1732063096576,3.0,3105.2,3104.4,0.8197]
[1732063096777,0.03174437,3105.0,3104.4,0.8197]
[1732063096931,3.03174437,3105.0,3104.4,0.8197]
[1732063097870,3.0,3104.8,3104.4,0.8197]
[1732063098081,3.0,3104.5,3103.6,0.8276]
[1732063098235,0.03174437,3104.4,3103.6,0.8276]
[1732063098442,0.03174437,3104.4,3103.7,0.24050738]
[1732063098666,3.0,3104.5,3103.8,0.24050738]
[1732063098896,3.0,3104.5,3104.0,0.8276]
[1732063099203,3.22085,3104.8,3104.1,0.24050738]
[1732063099204,3.0,3104.7,3104.1,0.24050738]
[1732063099502,3.0,3104.7,3104.2,0.2405049]
[1732063099702,3.0,3104.7,3104.3,0.2405049]
[1732063099903,3.0,3104.7,3104.4,0.2405049]
[1732063100072,3.0,3104.7,3104.0,0.8276]
[1732063100983,6.22092,3104.7,3104.0,0.8276]
[1732063101188,0.03174437,3104.6,3104.0,0.8276]
[1732063102301,3.0,3104.5,3104.0,0.8276]
[1732063103065,3.0,3104.7,3104.0,0.8276]
[1732063103260,0.03174437,3104.6,3104.0,0.8276]
[1732063103878,0.03174437,3105.0,3104.0,0.8276]
[1732063104164,0.03174437,3104.8,3104.0,0.8276]
[1732063104971,0.03174437,3105.0,3104.0,0.8276]
[1732063106102,0.03174437,3105.2,3104.0,0.8276]
[1732063108450,3.0,3105.1,3104.0,0.8276]
[1732063108618,0.03174437,3105.0,3104.0,0.8276]
[1732063108819,0.03174437,3105.0,3104.2,0.7946]
[1732063109666,6.22048,3105.2,3104.2,0.7946]
[1732063109667,0.03174437,3105.1,3104.2,0.7946]
[1732063110660,3.0,3105.0,3104.2,0.7946]
[1732063110958,0.03174437,3104.9,3104.2,0.7946]
[1732063111162,3.03174437,3104.9,3104.2,0.7946]
[1732063111832,6.25246437,3104.9,3104.2,0.7946]
[1732063112037,3.0,3104.7,3104.2,0.7946]
[1732063112242,0.03174437,3104.6,3104.2,0.7946]
[1732063112559,0.03174437,3104.8,3104.2,0.7946]
[1732063113540,3.25237437,3105.0,3104.2,0.7946]
[1732063113877,0.3708,3105.5,3104.2,0.7946]
[1732063114081,0.03174437,3105.4,3104.2,1.17420152]
[1732063114289,0.03174437,3105.4,3104.3,0.7946]
[1732063114435,0.03174437,3105.8,3104.5,0.7946]
[1732063115677,3.03174437,3105.8,3104.5,0.7946]
[1732063116178,3.0,3105.6,3104.5,0.7946]
[1732063116363,0.03174437,3105.5,3104.5,0.7946]
[1732063116571,3.0,3105.4,3104.5,0.7946]
[1732063116885,0.03174437,3105.3,3104.5,0.7946]
[1732063117188,0.03174437,3105.7,3104.5,0.7946]
[1732063117748,3.0,3105.6,3104.5,0.7946]
[1732063118071,0.03174437,3105.5,3104.5,0.7946]
[1732063119253,3.0,3105.3,3104.5,0.7946]
[1732063119555,0.03174437,3105.2,3104.5,0.7946]
[1732063119767,3.0,3105.1,3104.5,0.7946]
[1732063119950,0.03174437,3105.0,3104.5,0.7946]
[1732063120276,3.03174437,3105.3,3104.6,0.06430558]
[1732063120700,3.03174437,3105.3,3104.5,0.7946]
[1732063120850,6.25213437,3105.3,3104.5,0.7946]
[1732063121178,3.2204,3105.2,3104.5,0.7946]
[1732063121360,6.25231437,3105.1,3104.5,0.7946]
[1732063121596,3.03174437,3105.1,3104.5,0.7946]
[1732063121803,6.25232437,3105.1,3104.5,0.7946]
[1732063122188,3.0,3104.9,3104.5,0.7946]
[1732063122445,3.03174437,3104.8,3104.5,0.7946]
[1732063125086,0.03174437,3104.8,3104.5,0.7946]
[1732063125291,3.03174437,3105.0,3104.5,0.7946]
[1732063127038,3.0,3104.8,3104.3,0.8306]
[1732063127227,0.03174437,3104.7,3104.3,0.8306]
[1732063127642,0.03174437,3104.7,3104.4,0.06434025]
[1732063128443,0.03174437,3104.7,3104.3,0.8306]
[1732063128643,0.03174437,3104.7,3103.9,0.35733419]
[1732063128644,0.3708,3104.6,3103.9,1.18793419]
[1732063128850,3.25293437,3104.5,3103.9,0.8306]
[1732063129055,3.0,3104.4,3103.9,0.8306]
[1732063129259,0.03174437,3104.3,3103.9,1.18792016]
[1732063129574,0.03174437,3104.3,3103.9,0.8306]
[1732063129746,3.0,3104.2,3103.9,0.8306]
[1732063129928,0.03174437,3104.1,3103.9,0.8306]
[1732063131438,0.03174437,3104.3,3103.9,0.8306]
[1732063132963,3.0,3104.2,3103.9,0.8306]
[1732063133168,3.22189,3103.8,3103.6,0.35724578]
[1732063133330,6.25373437,3103.7,3103.5,0.8306]
[1732063133637,6.25373437,3103.7,3102.8,0.35724578]
[1732063133838,3.22208,3103.6,3102.9,1.18784578]
[1732063134026,6.25373437,3103.7,3102.9,1.18784578]
[1732063134027,0.03174437,3103.5,3102.9,1.18784578]
[1732063134222,3.0,3103.3,3102.9,1.18784578]
[1732063134428,0.03174437,3103.4,3103.0,0.06434025]
[1732063134872,0.03174437,3103.4,3102.9,0.8306]
[1732063135429,0.03174437,3103.6,3102.9,0.8306]
[1732063138654,3.0,3103.4,3102.9,0.8306]
[1732063138835,3.03174437,3103.4,3102.9,0.8306]
[1732063139252,6.25401437,3103.4,3102.9,0.8306]
[1732063139492,0.03174437,3103.4,3102.9,0.8306]
[1732063140583,3.25402437,3103.4,3102.9,0.8306]
[1732063140891,3.25402437,3103.4,3101.9,0.37813897]
[1732063140892,3.2227,3103.0,3102.6,0.8306]
[1732063141076,0.03174437,3102.9,3102.6,0.8306]
[1732063141392,3.03174437,3103.1,3102.6,0.8306]
[1732063141861,0.03174437,3103.1,3102.6,0.8306]
[1732063142063,0.03174437,3103.4,3102.6,0.8306]
[1732063142710,3.22163,3104.1,3102.6,0.8306]
[1732063142987,3.22163,3104.1,3102.2,0.01]
[1732063142988,0.03174437,3103.7,3102.8,0.8306]
[1732063143699,3.22227,3103.4,3102.8,0.8306]
[1732063143858,3.03174437,3103.3,3102.8,0.8306]
[1732063144066,3.22276,3103.0,3102.4,0.8306]
[1732063144266,0.03174437,3102.9,3102.4,0.8306]
[1732063144502,3.03174437,3102.9,3102.4,0.8306]
[1732063144805,6.25454437,3102.9,3102.4,0.8306]
[1732063145011,3.03174437,3102.9,3102.4,0.8306]
[1732063146074,3.03174437,3102.9,3101.5,0.8032]
[1732063146075,3.223,3102.7,3101.5,0.8032]
[1732063146270,3.25453437,3102.9,3101.3,0.73405095]
[1732063146271,3.0,3102.1,3101.4,1.18613784]
[1732063146479,3.0,3101.9,3101.6,0.06037992]
[1732063146688,0.03174437,3101.8,3101.5,0.05610326]
[1732063146888,0.03174437,3101.8,3101.4,0.8032]
[1732063147115,0.03174437,3102.0,3101.4,0.8032]
[1732063147529,3.0,3101.9,3101.4,0.8032]
[1732063147791,0.03174437,3101.8,3101.4,0.8032]
[1732063148634,0.03174437,3102.0,3101.4,0.8032]
[1732063149131,3.0,3101.9,3101.4,0.8032]
[1732063149292,0.03174437,3101.8,3101.4,0.8032]
[1732063149692,6.22363,3102.1,3101.4,0.8032]
[1732063149693,0.03174437,3102.1,3101.4,0.8032]
[1732063150312,0.3708,3102.6,3101.4,0.8032]
[1732063150313,0.03174437,3102.5,3101.4,0.8032]
[1732063150513,3.03174437,3102.5,3101.4,0.8032]
[1732063151131,0.03174437,3102.5,3101.4,0.8032]
[1732063152444,3.0,3102.4,3101.4,0.8032]
[1732063152773,0.03174437,3102.3,3101.4,0.8032]
[1732063153538,0.03174437,3102.7,3101.4,0.8032]
[1732063154483,3.25475437,3102.7,3101.4,0.8032]
[1732063154690,3.0,3102.6,3101.4,0.8032]
[1732063154843,0.03174437,3102.5,3101.4,0.8032]
[1732063155851,0.03174437,3102.8,3101.4,0.8032]
[1732063157475,0.03174437,3102.8,3101.5,1.14509221]
[1732063157682,0.03174437,3103.1,3101.7,1.14551831]
[1732063157888,0.03174437,3103.1,3101.8,1.14551831]
[1732063158064,0.03174437,3103.1,3101.9,0.7678]
[1732063158395,0.03174437,3103.1,3101.9,1.14551831]
[1732063158560,0.03174437,3103.1,3102.0,0.7678]
[1732063158766,3.22287,3102.9,3102.0,0.7678]
[1732063158963,3.03174437,3102.8,3102.0,0.7678]
[1732063159697,3.3708,3102.6,3101.6,0.7678]
[1732063159900,3.0,3102.2,3101.6,0.7678]
[1732063160063,0.03174437,3102.1,3101.7,0.05616252]
[1732063160252,0.03174437,3102.1,3101.8,0.23973736]
[1732063160454,0.03174437,3102.4,3101.6,0.7678]
[1732063160796,3.0,3102.3,3101.7,0.23982979]
[1732063160996,0.03174437,3102.2,3101.7,0.23982979]
[1732063161202,0.03174437,3102.2,3101.8,0.23982979]
[1732063161798,0.03174437,3102.2,3101.9,0.23982979]
[1732063162090,0.03174437,3102.2,3101.6,0.7678]
[1732063162389,0.03174437,3102.2,3101.7,0.23994133]
[1732063162695,0.03174437,3102.2,3101.8,0.23994133]
[1732063162902,0.03174437,3102.2,3101.6,0.7678]
[1732063163099,0.03174437,3102.2,3101.7,0.24009367]
[1732063163285,3.25531437,3102.2,3101.8,0.24009367]
[1732063163467,3.0,3102.0,3101.6,0.7678]
[1732063163666,3.0,3102.0,3101.7,0.24015054]
[1732063163667,0.03174437,3101.9,3101.7,0.24015054]
[1732063163869,3.0,3102.0,3101.8,0.24015054]
[1732063164068,3.0,3102.0,3101.6,0.7678]
[1732063164397,3.03174437,3102.0,3101.7,0.24015493]
[1732063164571,3.0,3102.0,3101.8,0.24015493]
[1732063164901,3.0,3102.0,3101.6,0.7678]
[1732063165101,3.0,3102.0,3101.7,0.24015709]
[1732063165395,3.0,3102.0,3101.8,0.24015709]
[1732063165571,3.0,3102.0,3101.6,0.7678]
[1732063166068,0.03174437,3102.1,3101.6,0.7678]
[1732063166276,3.0,3102.2,3101.6,0.7678]
[1732063166691,0.03174437,3102.1,3101.6,0.7678]
[1732063167058,3.25540437,3102.1,3101.6,0.7678]
[1732063167257,3.25540437,3102.1,3101.3,0.8035]
[1732063167258,3.0,3101.7,3101.3,0.8035]
[1732063167497,0.03174437,3101.6,3101.0,1.18232151]
[1732063167659,0.03174437,3101.6,3101.0,1.18248103]
[1732063167999,0.03174437,3101.6,3101.0,0.8035]
[1732063168658,0.03174437,3101.7,3101.0,0.8035]
[1732063169261,3.03174437,3101.8,3101.0,1.18248103]
[1732063170275,3.03174437,3101.8,3101.0,1.18254543]
[1732063170803,3.03174437,3101.8,3101.0,0.8035]
[1732063171006,6.25570437,3101.8,3101.0,0.8035]
[1732063171601,6.25570437,3101.8,3101.0,1.18250182]
[1732063171898,9.47973437,3101.8,3101.0,1.18250182]
[1732063172084,6.22396,3101.8,3101.0,1.18250182]
[1732063172282,6.25570437,3101.8,3101.0,1.18250182]
[1732063172808,0.03174437,3101.8,3101.0,1.18250182]
[1732063173373,0.03174437,3101.9,3101.2,0.37900182]
[1732063173588,0.03174437,3101.9,3101.3,0.8035]
[1732063173972,0.03174437,3101.9,3101.3,1.18250182]
[1732063174295,0.03174437,3101.9,3101.3,1.56170097]
[1732063174499,0.03174437,3102.1,3101.3,1.56170097]
[1732063174703,0.03174437,3102.1,3101.3,1.18277566]
[1732063174891,0.03174437,3102.1,3101.4,0.37927566]
[1732063175611,3.0,3102.3,3101.4,0.37927566]
[1732063175612,0.03174437,3102.3,3101.4,0.37927566]
[1732063175778,0.03174437,3102.3,3100.3,0.02]
[1732063175779,0.03174437,3102.3,3101.5,1.18277566]
[1732063175974,0.03174437,3102.3,3101.6,0.37927566]
[1732063176176,0.03174437,3102.4,3101.6,0.37927566]
[1732063176983,3.03174437,3102.4,3101.6,0.37927566]
[1732063177183,0.03174437,3102.4,3101.6,0.37927566]
[1732063177516,0.03174437,3102.4,3101.5,0.8035]
[1732063177817,0.03174437,3102.4,3101.6,0.37939906]
[1732063178329,0.03174437,3102.4,3101.5,1.18289906]
[1732063179223,0.03174437,3102.4,3101.6,0.37939906]
[1732063179423,0.03174437,3102.4,3101.5,1.18289906]
[1732063180032,3.0,3101.9,3101.4,0.37939906]
[1732063180218,0.03174437,3101.8,3101.2,1.13389906]
[1732063180423,0.03174437,3101.8,3101.2,0.7545]
[1732063180597,0.03174437,3102.2,3101.2,1.13389906]
[1732063183209,0.03174437,3102.2,3101.2,0.7545]
[1732063183513,0.03174437,3102.2,3101.2,0.37939906]
[1732063183842,0.03174437,3102.2,3101.3,0.7545]
[1732063188603,0.03174437,3102.5,3101.3,0.7545]
[1732063188921,0.03174437,3102.5,3101.4,0.37960561]
[1732063189109,0.03174437,3102.5,3101.5,0.7545]
[1732063190184,6.22331,3102.4,3101.5,0.7545]
[1732063190383,0.03174437,3102.3,3101.5,0.7545]
[1732063191349,0.03174437,3102.5,3101.5,0.7545]
[1732063194460,0.03174437,3102.7,3101.7,0.8212]
[1732063194653,0.03174437,3103.0,3101.8,1.20106792]
[1732063194897,0.03174437,3103.0,3102.0,0.8212]
[1732063195263,0.03174437,3103.0,3102.1,0.05631773]
[1732063195478,0.03174437,3103.0,3102.2,0.8212]
[1732063195664,0.03174437,3103.2,3102.2,0.87751773]
[1732063196491,3.03174437,3103.2,3102.2,0.8212]
[1732063197612,6.25430437,3103.2,3102.2,0.8212]
[1732063197824,6.22285,3102.9,3101.9,0.8212]
[1732063198102,0.03174437,3102.8,3101.9,0.8212]
[1732063199409,6.59345,3103.1,3101.9,0.8212]
[1732063199410,0.03174437,3103.0,3101.9,0.8212]
[1732063201400,0.03174437,3103.0,3102.0,0.8212]
[1732063201604,0.03174437,3103.3,3102.0,0.8212]
[1732063201825,0.03174437,3103.3,3102.2,0.8212]
[1732063202623,0.03174437,3103.3,3102.3,0.3218]
[1732063202832,0.03174437,3103.3,3102.2,0.8212]
[1732063203031,0.03174437,3103.3,3102.4,0.05625736]
[1732063203196,0.03174437,3103.3,3102.2,0.8212]
[1732063204089,0.03174437,3103.3,3102.3,0.05625736]
[1732063204314,0.03174437,3103.3,3102.4,0.8212]
[1732063206217,0.3708,3103.2,3102.1,0.8212]
[1732063206448,0.40254437,3103.1,3102.2,0.0561776]
[1732063207018,0.40254437,3103.1,3102.1,0.8212]
[1732063207254,0.40254437,3103.1,3102.2,0.3844142]
[1732063208157,3.40254437,3103.1,3102.2,0.3844142]
[1732063208367,3.40254437,3103.1,3102.1,0.8212]
[1732063208368,6.62515437,3103.1,3102.1,0.8212]
[1732063208573,0.3708,3103.0,3101.8,0.8212]
[1732063208860,0.03174437,3102.9,3101.9,0.3843775]
[1732063209242,3.03174437,3102.9,3101.9,0.3843775]
[1732063209452,9.47742437,3102.9,3101.9,0.3843775]
[1732063209630,9.44568,3102.9,3101.9,0.3843775]
[1732063209967,3.0,3102.7,3101.9,0.3843775]
[1732063210139,0.03174437,3102.6,3101.9,0.3843775]
[1732063210337,0.03174437,3102.6,3101.8,0.8212]